bitfinex-derivatives/quotes_ETHF0:USTF0_20250106
["timestamp","ask_amount","ask_price","bid_price","bid_amount"]
[1736201828711,0.27189,3676.7,3676.5,41.0719]
[1736201829214,0.4438,3676.8,3676.5,40.8]
[1736201829509,0.71568,3676.8,3676.6,0.27189]
[1736201829910,0.4438,3676.8,3676.5,40.8]
[1736201830113,0.27189,3676.6,3676.5,40.8]
[1736201830302,0.4438,3676.8,3676.5,40.8]
[1736201830508,0.27189,3676.7,3676.5,41.0719]
[1736201831910,0.27189,3676.7,3676.5,41.07189]
[1736201832809,0.27189,3676.6,3676.5,40.8]
[1736201834021,0.27189,3676.7,3676.5,41.0719]
[1736201835016,0.27184,3677.3,3677.1,0.27185]
[1736201835322,0.9189,3677.6,3676.8,3.2078]
[1736201835519,0.9189,3677.6,3677.3,0.27183]
[1736201835520,1.19072,3677.6,3677.3,0.27183]
[1736201836123,1.19072,3677.6,3676.9,0.9006]
[1736201836320,7.47428629,3677.9,3676.9,2.6706]
[1736201836524,0.27181,3677.7,3677.4,0.27183]
[1736201836717,0.27182,3677.7,3677.4,41.07183]
[1736201837425,0.27181,3677.7,3677.4,41.07183]
[1736201837625,0.27182,3677.6,3677.4,41.07183]
[1736201837827,0.27182,3677.6,3677.4,40.8]
[1736201838021,0.4785,3677.8,3677.4,41.07183]
[1736201838227,0.27181,3677.7,3677.4,41.07183]
[1736201838426,0.27181,3677.7,3677.5,0.27182]
[1736201839426,0.75031,3677.8,3677.6,0.27181]
[1736201839633,0.27181,3677.7,3677.4,40.8]
[1736201840032,0.27181,3677.7,3677.6,0.27182]
[1736201840333,0.27181,3677.7,3677.5,0.27182]
[1736201841627,0.27181,3677.7,3677.4,40.8]
[1736201841834,0.75031,3677.8,3677.6,0.27182]
[1736201842134,0.75031,3677.8,3677.6,0.27181]
[1736201842327,0.4785,3677.8,3677.7,0.27181]
[1736201845832,0.4404,3678.0,3677.9,0.27179]
[1736201846137,0.469,3678.2,3677.7,3.2078]
[1736201846339,0.469,3678.2,3678.1,0.27178]
[1736201846737,0.9071,3678.7,3678.6,0.27174]
[1736201847035,4.26648629,3679.9,3679.8,0.27165]
[1736201847628,4.26648629,3679.9,3679.8,41.07165]
[1736201848337,4.26648629,3679.9,3679.8,43.23120382]
[1736201849041,0.9015,3680.2,3680.1,0.27163]
[1736201851236,0.9015,3680.2,3680.0,0.27164]
[1736201851431,0.9015,3680.2,3679.8,42.95955382]
[1736201851635,0.9015,3680.2,3680.1,0.27163]
[1736201852440,0.4396,3680.7,3680.2,0.27162]
[1736201852741,0.71119,3680.7,3680.1,5.36735382]
[1736201853438,0.71119,3680.7,3680.5,0.2716]
[1736201853738,0.71119,3680.7,3680.1,5.36735382]
[1736201853937,0.71119,3680.7,3680.5,0.2716]
[1736201855742,0.4396,3680.7,3680.6,0.27159]
[1736201856442,0.4396,3680.7,3680.1,5.36735382]
[1736201856637,0.71119,3680.7,3680.5,0.2716]
[1736201856840,0.2716,3680.6,3680.4,0.27161]
[1736201857042,0.2716,3680.6,3680.1,5.36735382]
[1736201857235,0.2716,3680.6,3680.5,0.2716]
[1736201857739,0.2716,3680.6,3680.1,5.36735382]
[1736201858042,0.2716,3680.6,3680.4,0.2716]
[1736201858445,0.2716,3680.6,3680.1,5.36735382]
[1736201858645,0.2716,3680.6,3680.1,6.04735382]
[1736201858943,0.2716,3680.6,3680.4,0.27161]
[1736201860448,0.27159,3680.6,3680.1,5.36735382]
[1736201860645,0.4396,3680.7,3680.1,6.14735382]
[1736201860942,0.2716,3680.6,3680.4,0.27161]
[1736201861139,0.2716,3680.5,3680.4,0.27161]
[1736201861343,0.27162,3680.2,3680.1,3.2078]
[1736201861536,0.27162,3680.2,3680.1,3.7478]
[1736201862544,2.43117382,3680.2,3680.1,3.2078]
[1736201862845,5.36735382,3680.2,3679.2,3.2078]
[1736201863053,5.36735382,3680.2,3679.2,4.5895]
[1736201863054,0.27169,3679.4,3679.2,4.5895]
[1736201863349,0.27169,3679.4,3679.3,40.8]
[1736201863647,0.27169,3679.4,3679.3,41.93]
[1736201865852,0.27169,3679.4,3679.3,40.8]
[1736201866340,0.27175,3678.5,3678.4,3.47955]
[1736201866545,0.27175,3678.5,3678.4,6.06955]
[1736201866750,0.27175,3678.5,3678.4,46.5978]
[1736201868046,0.27175,3678.5,3678.4,44.0078]
[1736201876250,0.27175,3678.5,3678.4,40.8]
[1736201904371,2.58985382,3678.5,3678.0,3.2078]
[1736201904573,0.27178,3678.1,3678.0,4.7878]
[1736201904975,0.27178,3678.1,3678.0,1.58]
[1736201906077,0.27181,3677.7,3677.6,40.8]
[1736201906670,0.70441,3677.7,3677.6,40.8]
[1736201909180,0.70441,3677.7,3677.0,3.2078]
[1736201909181,0.4326,3677.7,3677.0,3.2078]
[1736201909479,0.27187,3676.9,3676.8,4.26383765]
[1736201909780,0.27187,3676.9,3676.8,4.73383765]
[1736201910175,0.27187,3676.9,3676.8,45.53383765]
[1736201911080,0.27187,3676.9,3676.8,41.27]
[1736201912781,3.19797313,3677.2,3677.1,0.27185]
[1736201912978,1.52517313,3677.2,3677.1,2.54140382]
[1736201913179,1.52517313,3677.3,3677.1,2.26955382]
[1736201913478,1.52517313,3677.3,3677.2,44.27965]
[1736201913679,1.52517313,3677.3,3677.2,44.81965]
[1736201914176,0.67946,3678.1,3677.2,44.5478]
[1736201914379,0.27182,3677.6,3677.5,0.27182]
[1736201914577,0.27182,3677.6,3677.5,3.47962]
[1736201914783,0.27181,3677.7,3677.6,0.27181]
[1736201915384,0.67946,3678.1,3677.5,3.47962]
[1736201915385,0.27182,3677.6,3677.5,3.47962]
[1736201917381,0.27182,3677.6,3677.5,3.2078]
[1736201919389,0.27182,3677.6,3677.5,3.5978]
[1736201922898,0.27182,3677.6,3677.5,0.39]
[1736201930307,0.27184,3677.3,3677.2,40.8]
[1736201930712,3.47964,3677.3,3677.2,40.8]
[1736201933015,3.2078,3677.3,3676.5,0.2719]
[1736201933209,0.27189,3676.6,3676.5,0.8019]
[1736201933603,0.27189,3676.6,3676.5,41.6019]
[1736201936012,0.27189,3676.6,3676.5,41.33]
[1736201936211,0.27189,3676.6,3676.5,43.48955382]
[1736201936411,0.27189,3676.6,3676.5,43.76145382]
[1736201938014,0.27189,3676.6,3676.5,43.48955382]
[1736201944617,0.27189,3676.6,3676.5,42.95955382]
[1736201948216,0.27189,3676.6,3676.5,40.8]
[1736201949717,4.26648629,3677.4,3676.5,41.32]
[1736201949920,4.26648629,3677.4,3677.2,5.36735382]
[1736201950123,4.26648629,3677.4,3677.3,0.27184]
[1736201950319,4.26648629,3677.4,3677.3,41.17254]
[1736201951021,4.26648629,3677.4,3677.3,43.12383362]
[1736201951217,0.27179,3678.0,3677.3,43.33523362]
[1736201951425,0.27179,3678.0,3677.9,1.24743681]
[1736201951922,2.71600681,3678.6,3677.9,1.24743681]
[1736201951923,3.2078,3679.0,3677.9,5.15909362]
[1736201952118,0.9669,3678.9,3678.4,0.97564681]
[1736201952323,0.9669,3678.9,3678.7,0.27173]
[1736201952324,0.27173,3678.8,3678.7,0.27173]
[1736201952523,1.23862,3678.9,3678.7,41.07173]
[1736201953020,1.23862,3678.9,3678.7,40.8]
[1736201953317,0.27173,3678.8,3678.7,40.8]
[1736201955220,4.2688,3679.4,3678.7,40.8]
[1736201955221,3.2078,3679.4,3678.7,40.8]
[1736201955422,0.27171,3679.1,3679.0,2.160815]
[1736201959121,4.1662,3679.8,3679.0,2.160815]
[1736201959426,0.2717,3679.3,3679.2,0.27169]
[1736201959625,4.1662,3679.8,3679.3,0.27169]
[1736201959925,0.27168,3679.4,3679.3,0.27169]
[1736201960825,0.27168,3679.4,3679.1,2.160815]
[1736201961026,0.27168,3679.4,3679.2,0.27169]
[1736201961227,0.27168,3679.4,3679.1,2.160815]
[1736201961526,0.27168,3679.4,3679.3,0.27169]
[1736201961827,2.160815,3680.4,3679.1,2.160815]
[1736201961828,3.88685,3680.3,3679.2,3.2078]
[1736201962031,0.4789,3679.7,3679.6,2.432485]
[1736201962423,0.4789,3679.7,3679.6,43.232485]
[1736201963627,0.4789,3679.7,3679.6,46.440285]
[1736201966731,0.4789,3679.7,3679.6,5.640285]
[1736201968926,0.75056,3679.7,3679.6,5.640285]
[1736201969531,0.4789,3679.7,3679.6,5.640285]
[1736201972030,0.75056,3679.7,3679.6,5.640285]
[1736201972636,0.75056,3679.7,3679.6,5.368615]
[1736201972836,0.75056,3679.7,3679.6,3.2078]
[1736201973138,0.27168,3679.4,3679.3,42.960815]
[1736201975939,0.75808,3679.5,3679.4,0.27168]
[1736201976134,0.4755,3679.6,3679.5,0.27168]
[1736201976333,0.74717,3679.6,3679.5,0.27168]
[1736201978141,0.4755,3679.6,3679.5,0.27168]
[1736201978440,0.74717,3679.6,3679.5,0.27168]
[1736201978637,0.4755,3679.6,3679.5,0.27168]
[1736201980633,0.27165,3679.9,3679.3,42.960815]
[1736201980834,0.27165,3679.9,3679.8,0.27165]
[1736201981033,1.24514,3680.0,3679.9,0.27165]
[1736201981237,0.4828,3680.0,3679.9,0.27165]
[1736201982039,3.47942,3680.3,3680.2,0.27162]
[1736201982040,3.2078,3680.3,3680.2,0.27162]
[1736201982241,3.2078,3680.3,3680.2,2.432435]
[1736201982548,0.4828,3680.4,3680.3,0.27162]
[1736201982739,0.75441,3680.4,3680.3,0.27162]
[1736201984639,0.4828,3680.4,3680.2,2.160815]
[1736201984947,0.75441,3680.4,3680.3,0.27162]
[1736201986242,0.4828,3680.4,3680.3,0.27162]
[1736201986442,0.75441,3680.4,3680.3,0.27162]
[1736201987947,0.4828,3680.4,3680.3,0.27162]
[1736201988341,0.75441,3680.4,3680.3,0.27162]
[1736201989246,0.4828,3680.4,3680.3,0.27162]
[1736201991148,0.75441,3680.4,3680.3,0.27162]
[1736201991342,0.4828,3680.4,3680.3,0.27162]
[1736201993450,0.75441,3680.4,3680.3,0.27162]
[1736201994351,0.4828,3680.4,3680.3,0.27162]
[1736201995053,0.27158,3680.8,3680.7,0.27158]
[1736201995651,0.27158,3680.8,3680.7,41.07158]
[1736201997350,0.9599,3681.3,3680.4,3.2078]
[1736201997655,0.4809,3680.7,3680.6,0.27159]
[1736201997841,0.4809,3680.7,3680.6,41.07159]
[1736201998352,0.4809,3680.7,3680.6,45.33558683]
[1736201999448,0.4809,3680.7,3680.6,41.07159]
[1736202001050,0.2716,3680.5,3680.4,6.39599524]
[1736202002253,0.2716,3680.5,3680.4,0.27161]
[1736202002456,0.2716,3680.5,3680.3,0.27161]
[1736202002649,0.2716,3680.5,3680.3,2.95161]
[1736202003156,0.27161,3680.4,3680.3,2.68]
[1736202007058,0.27161,3680.4,3680.3,1.9227]
[1736202007860,0.27162,3680.3,3680.2,40.8]
[1736202008658,0.27166,3679.7,3679.6,4.25392671]
[1736202008854,0.27166,3679.7,3679.6,7.52392671]
[1736202009055,0.27166,3679.7,3679.6,48.32392671]
[1736202009254,0.27166,3679.7,3679.6,44.07]
[1736202009851,0.27166,3679.7,3679.6,40.8]
[1736202010253,3.47946,3679.7,3679.6,40.8]
[1736202010652,0.27168,3679.5,3679.4,4.25392671]
[1736202011060,0.2717,3679.2,3679.1,4.25392671]
[1736202011464,3.4795,3679.2,3679.1,4.25392671]
[1736202011760,3.4795,3679.2,3679.1,45.05392671]
[1736202012566,3.4795,3679.2,3679.1,40.8]
[1736202012966,4.8949,3679.2,3679.1,40.8]
[1736202013371,0.27174,3678.7,3678.6,4.25392671]
[1736202013668,0.27174,3678.7,3678.6,4.78392671]
[1736202013869,0.27174,3678.7,3678.6,45.58392671]
[1736202014268,0.27174,3678.7,3678.6,41.33]
[1736202037588,1.24719492,3678.7,3678.6,0.53]
[1736202037889,0.27178,3678.1,3678.0,1.69024492]
[1736202038085,0.27178,3678.1,3678.0,42.49024492]
[1736202038483,0.27178,3678.1,3678.0,42.21845492]
[1736202039787,1.24723492,3678.1,3678.0,40.8]
[1736202039990,0.27178,3678.1,3678.0,40.8]
[1736202049594,3.47958,3678.1,3678.0,40.8]
[1736202052988,3.47958,3678.1,3678.0,41.77545492]
[1736202054684,3.96208,3678.1,3678.0,41.77545492]
[1736202055286,7.1333243,3678.1,3678.0,41.77545492]
[1736202056991,3.9255243,3678.1,3678.0,41.77545492]
[1736202057293,7.1333243,3678.1,3678.0,41.77545492]
[1736202058081,3.96208,3678.1,3678.0,41.77545492]
[1736202058286,3.47958,3678.1,3678.0,41.77545492]
[1736202058593,5.80655253,3678.5,3678.0,47.90090984]
[1736202058594,5.33215253,3678.5,3678.0,47.90090984]
[1736202058781,5.21425253,3678.5,3678.4,3.47956]
[1736202058986,5.21425253,3678.5,3678.4,3.61956]
[1736202059293,5.21425253,3678.5,3678.4,49.41956]
[1736202060092,0.27172,3678.9,3678.8,0.27173]
[1736202060391,0.27172,3678.9,3678.8,1.24718492]
[1736202060992,0.27172,3678.9,3678.8,2.43236047]
[1736202062897,0.27172,3679.0,3678.9,0.27172]
[1736202071995,3.88703,3679.4,3678.8,2.16063047]
[1736202072201,0.27172,3678.9,3678.8,2.43235047]
[1736202073399,3.2078,3679.4,3678.8,5.36843047]
[1736202073601,0.2717,3679.3,3679.2,0.27169]
[1736202073808,3.2078,3679.4,3679.1,2.16063047]
[1736202073991,3.47949,3679.4,3679.3,0.27169]
[1736202076204,3.2078,3679.4,3679.3,0.27169]
[1736202078509,3.2078,3679.4,3679.3,41.07169]
[1736202079701,3.2078,3679.4,3679.3,0.27169]
[1736202080509,3.47948,3679.4,3679.3,0.27169]
[1736202080702,3.2078,3679.4,3679.3,0.27169]
[1736202081105,3.2078,3679.4,3679.3,1.24649116]
[1736202081611,1.20436,3679.8,3679.7,0.27166]
[1736202081910,1.20436,3679.8,3679.7,0.97480116]
[1736202082504,1.20436,3679.8,3679.7,1.24646116]
[1736202092117,0.454,3680.0,3679.7,0.97480116]
[1736202092318,0.454,3680.0,3679.9,1.24645116]
[1736202099320,0.4814,3680.1,3679.9,0.97480116]
[1736202099523,0.4814,3680.1,3680.0,0.27164]
[1736202100521,0.4814,3680.1,3680.0,41.07164]
[1736202100725,0.4814,3680.1,3680.0,44.27944]
[1736202101224,0.9056,3680.6,3680.5,0.2716]
[1736202104421,0.4498,3680.7,3680.6,0.27159]
[1736202104628,0.4498,3680.7,3680.6,2.22119232]
[1736202106026,0.4498,3680.7,3680.6,43.02119232]
[1736202112732,0.4498,3680.7,3680.6,43.53119232]
[1736202116449,0.72139,3680.7,3680.6,43.53119232]
[1736202118050,0.72139,3680.7,3680.6,43.02119232]
[1736202118348,0.72139,3680.7,3680.6,42.04639116]
[1736202123550,0.72139,3680.7,3680.6,41.77480116]
[1736202123756,0.72139,3680.7,3680.6,42.04639116]
[1736202125753,0.72139,3680.7,3680.6,41.77480116]
[1736202126853,0.72139,3680.7,3680.6,40.8]
[1736202127154,0.72139,3680.7,3680.6,41.77480116]
[1736202128741,3.92919,3680.7,3680.6,41.77480116]
[1736202129349,3.92919,3680.7,3680.6,40.8]
[1736202129548,3.92919,3680.7,3679.8,7.47066635]
[1736202129549,0.27165,3680.0,3679.9,0.27163]
[1736202129750,0.27165,3680.0,3679.9,1.24643116]
[1736202129952,0.27165,3680.0,3679.9,43.29643116]
[1736202138650,0.27165,3680.0,3679.9,43.02480116]
[1736202139260,0.27165,3680.0,3679.9,43.29645116]
[1736202141564,0.27165,3680.0,3679.9,43.02480116]
[1736202144054,0.27165,3680.0,3679.9,1.25]
[1736202144760,0.27165,3679.9,3679.8,40.8]
[1736202145563,0.43,3680.1,3679.7,0.97480116]
[1736202145564,0.27165,3679.8,3679.7,0.97480116]
[1736202145765,0.72425,3679.8,3679.7,2.07480116]
[1736202145965,0.72425,3679.8,3679.7,42.87480116]
[1736202146373,0.72425,3679.8,3679.7,2.07480116]
[1736202150871,0.72425,3679.8,3679.7,1.1]
[1736202151069,0.72425,3679.8,3679.7,2.07480116]
[1736202153674,3.93205,3679.8,3679.7,2.07480116]
[1736202154175,4.63520116,3679.8,3679.6,40.8]
[1736202154364,0.27172,3679.0,3678.9,0.27172]
[1736202154865,0.27172,3679.0,3678.9,41.07172]
[1736202155065,0.27172,3679.0,3678.9,40.8]
[1736202155262,1.24652116,3679.0,3678.9,40.8]
[1736202160675,0.27174,3678.6,3678.5,3.2078]
[1736202160878,0.27176,3678.4,3678.3,0.97480116]
[1736202161071,0.27176,3678.4,3678.3,41.77480116]
[1736202161480,0.72126,3678.4,3678.3,40.8]
[1736202162278,1.69606116,3678.4,3678.3,40.8]
[1736202162469,1.42430116,3678.4,3678.1,0.97480116]
[1736202162780,0.27177,3678.2,3678.1,1.18480116]
[1736202162971,0.27177,3678.2,3678.1,41.98480116]
[1736202176387,0.27177,3678.2,3678.1,42.25658116]
[1736202177191,3.8871,3679.0,3678.1,41.98480116]
[1736202177491,3.8871,3679.0,3678.7,0.27173]
[1736202177492,0.27174,3678.8,3678.7,0.27173]
[1736202182397,0.27174,3678.7,3678.6,1.24654116]
[1736202183891,0.27175,3678.6,3678.5,0.27175]
[1736202187998,0.27174,3678.9,3678.8,0.27172]
[1736202188997,4.5253,3679.0,3678.5,0.97480116]
[1736202189299,0.27174,3678.7,3678.6,0.27173]
[1736202194605,0.27174,3678.6,3678.5,1.24655116]
[1736202195503,0.27174,3678.6,3678.5,0.97480116]
[1736202196199,0.4491,3679.0,3678.5,0.97480116]
[1736202196396,0.27172,3679.0,3678.9,1.24651116]
[1736202196596,0.27171,3679.1,3679.0,0.27171]
[1736202196796,0.27171,3679.1,3679.0,42.04651116]
[1736202197195,0.2717,3679.2,3679.0,41.77480116]
[1736202197406,0.2717,3679.2,3679.1,0.27169]
[1736202199594,0.2717,3679.2,3679.0,41.77480116]
[1736202199798,0.27171,3679.1,3679.0,42.04650116]
[1736202219323,0.2717,3679.3,3679.2,0.27169]
[1736202227426,0.2717,3679.3,3679.2,1.24649116]
[1736202229334,1.3418,3679.4,3679.2,0.97480116]
[1736202229533,1.3418,3679.4,3679.3,0.27169]
[1736202232141,1.3418,3679.4,3679.3,4.53455635]
[1736202233037,1.3418,3679.4,3679.3,7.74235635]
[1736202234637,1.3418,3679.4,3679.3,8.80965777]
[1736202235445,7.46373383,3680.2,3679.3,14.51276893]
[1736202235641,4.25593383,3680.2,3680.1,1.24643116]
[1736202236144,4.25593383,3680.2,3680.1,42.04643116]
[1736202236340,4.25593383,3680.2,3680.1,42.05643116]
[1736202237040,1.64869,3680.8,3680.7,0.27159]
[1736202237339,1.64869,3680.8,3680.7,1.24639116]
[1736202238545,1.64869,3680.8,3680.7,0.97480116]
[1736202239441,1.64869,3680.8,3680.7,1.24639116]
[1736202240338,1.3771,3680.8,3680.7,1.24639116]
[1736202240645,1.64868,3680.8,3680.7,1.24639116]
[1736202240840,1.3771,3680.8,3680.7,1.24639116]
[1736202241248,1.64868,3680.8,3680.7,1.24639116]
[1736202244247,1.3771,3680.8,3680.6,0.27159]
[1736202244545,0.27159,3680.7,3680.6,0.27159]
[1736202245138,1.64869,3680.8,3680.7,0.27159]
[1736202245745,0.27159,3680.7,3680.6,0.27159]
[1736202246043,0.27159,3680.7,3680.6,1.24639116]
[1736202246445,1.3771,3680.8,3680.6,0.97480116]
[1736202246644,1.64868,3680.8,3680.7,0.27159]
[1736202257247,1.64868,3680.8,3680.7,1.24639116]
[1736202257754,1.64868,3680.8,3680.7,4.45419116]
[1736202257755,0.4696,3680.8,3680.7,4.45419116]
[1736202258052,0.432,3681.1,3681.0,0.27157]
[1736202258353,0.4563,3681.6,3681.5,0.27153]
[1736202258555,0.8883,3681.6,3681.5,0.27153]
[1736202259150,1.15982,3681.6,3681.5,0.27153]
[1736202264458,0.8883,3681.6,3680.5,7.44582768]
[1736202264762,0.27156,3681.2,3681.1,1.24634116]
[1736202265957,0.27156,3681.2,3681.1,0.97480116]
[1736202266162,0.27156,3681.2,3681.1,1.24636116]
[1736202267049,0.27156,3681.2,3681.1,0.27156]
[1736202267458,0.27156,3681.1,3681.0,1.24636116]
[1736202267661,1.16896,3681.1,3681.0,1.24636116]
[1736202269261,1.16896,3681.1,3681.0,40.8]
[1736202270465,0.8974,3681.1,3680.5,4.45419116]
[1736202270659,0.27159,3680.6,3680.5,4.45419116]
[1736202270965,0.27159,3680.6,3680.5,45.25419116]
[1736202273165,0.27159,3680.6,3680.5,44.98260116]
[1736202273466,0.27159,3680.6,3680.5,40.8]
[1736202274564,0.27159,3680.6,3680.5,41.28]
[1736202276265,0.27159,3680.6,3680.5,41.5516]
[1736202276563,0.27159,3680.6,3680.5,41.28]
[1736202281265,0.27159,3680.6,3680.5,41.5516]
[1736202281671,0.27159,3680.6,3680.5,41.28]
[1736202283374,0.27159,3680.6,3680.5,41.5516]
[1736202283774,0.27159,3680.6,3680.5,41.28]
[1736202291680,0.27159,3680.6,3680.5,0.48]
[1736202292579,0.27163,3680.1,3680.0,4.23802768]
[1736202293278,0.27163,3680.1,3680.0,0.27164]
[1736202297283,0.27163,3680.1,3680.0,41.07164]
[1736202300587,0.97480116,3680.6,3680.0,41.07164]
[1736202300588,7.73531383,3680.8,3680.7,0.27159]
[1736202300782,7.46373383,3680.8,3680.3,3.2078]
[1736202301086,7.46373383,3680.8,3680.7,1.24639116]
[1736202301283,4.25593383,3680.8,3680.7,42.04639116]
[1736202301481,0.27156,3681.1,3680.7,41.77480116]
[1736202301683,0.27156,3681.1,3681.0,0.27157]
[1736202302188,0.416,3681.2,3680.9,0.97480116]
[1736202302389,0.27157,3681.0,3680.9,1.24637116]
[1736202302593,0.27156,3681.1,3681.0,0.27156]
[1736202302780,0.27157,3681.0,3680.9,1.24637116]
[1736202304292,0.27157,3681.0,3680.9,0.27157]
[1736202306592,0.27157,3681.0,3680.9,1.24637116]
[1736202312696,0.27157,3681.0,3680.9,0.27157]
[1736202313796,0.97480116,3681.1,3680.6,4.23802768]
[1736202313998,0.27159,3680.7,3680.6,4.23802768]
[1736202314399,0.27159,3680.6,3680.5,4.50962768]
[1736202314592,1.12289,3680.6,3680.5,4.23802768]
[1736202315595,0.27161,3680.4,3680.3,42.04641116]
[1736202315794,0.27161,3680.4,3680.3,43.23480116]
[1736202315994,0.27161,3680.4,3680.3,43.50642116]
[1736202317403,0.27161,3680.4,3680.3,43.23480116]
[1736202318495,0.27161,3680.4,3680.3,42.26]
[1736202320891,0.27161,3680.4,3680.3,1.46]
[1736202321294,0.27163,3680.1,3680.0,45.03802768]
[1736202321499,1.24643116,3680.1,3680.0,4.23802768]
[1736202322804,0.27165,3679.8,3679.7,40.8]
[1736202323910,0.27168,3679.5,3679.4,7.44582768]
[1736202324101,0.27168,3679.5,3679.4,7.71750768]
[1736202324304,0.27168,3679.5,3679.4,48.24582768]
[1736202325405,0.27168,3679.5,3679.4,44.27948]
[1736202325607,0.27168,3679.5,3679.4,44.0078]
[1736202329701,0.27168,3679.5,3679.4,40.8]
[1736202330602,1.24648116,3679.5,3679.4,40.8]
[1736202330804,0.97480116,3679.5,3679.1,4.23802768]
[1736202331103,0.2717,3679.2,3679.1,4.23802768]
[1736202331304,0.2717,3679.2,3679.1,45.03802768]
[1736202331506,0.2717,3679.2,3679.1,40.8]
[1736202332614,0.7288,3679.2,3679.1,40.8]
[1736202334312,0.4571,3679.2,3678.5,5.21282884]
[1736202334516,0.27174,3678.6,3678.5,5.82282884]
[1736202334820,0.27174,3678.6,3678.5,45.64802768]
[1736202335415,0.27174,3678.6,3678.5,41.41]
[1736202336618,0.27174,3678.6,3678.5,41.68175]
[1736202340213,0.27174,3678.6,3678.5,41.41]
[1736202340722,0.27174,3678.6,3678.5,41.68175]
[1736202342323,0.27174,3678.6,3678.5,41.41]
[1736202343219,0.27174,3678.6,3678.5,41.68175]
[1736202344022,0.27174,3678.6,3678.5,41.41]
[1736202344924,0.27174,3678.6,3678.5,41.68175]
[1736202346226,0.27174,3678.6,3678.5,41.41]
[1736202355237,0.27174,3678.6,3678.5,41.68175]
[1736202356134,0.27174,3678.6,3678.5,41.41]
[1736202356637,0.27174,3678.6,3678.5,40.8]
[1736202357336,0.4267,3678.7,3678.3,0.27176]
[1736202357645,0.2718,3677.8,3677.7,4.23802768]
[1736202357834,5.64094286,3677.8,3677.7,4.23802768]
[1736202359140,5.64094286,3677.8,3677.0,0.9761274]
[1736202359141,0.27185,3677.1,3677.0,0.9761274]
[1736202359940,0.27185,3677.1,3677.0,1.2479874]
[1736202360136,0.27185,3677.1,3677.0,0.9761274]
[1736202360340,0.27185,3677.1,3677.0,1.2479874]
[1736202360935,0.27185,3677.1,3677.0,0.9761274]
[1736202361641,0.27187,3676.9,3676.8,3.2078]
[1736202361940,0.27187,3676.9,3676.8,4.1839274]
[1736202363035,0.27187,3676.9,3676.8,44.9839274]
[1736202364144,0.27186,3677.0,3676.9,0.27187]
[1736202364344,0.27186,3677.0,3676.9,1.2479974]
[1736202364842,0.27186,3677.0,3676.9,0.9761274]
[1736202379956,0.27187,3676.9,3676.8,41.07187]
[1736202380255,0.27187,3676.9,3676.8,40.8]
[1736202380454,0.27187,3676.9,3676.8,41.7761274]
[1736202381351,0.27187,3676.9,3676.2,3.2078]
[1736202381553,0.27187,3676.9,3674.5,2.943]
[1736202381746,0.27187,3676.9,3674.2,21.3199841]
[1736202381747,0.27203,3674.7,3674.2,3.27358596]
[1736202381947,0.2721,3673.7,3673.6,40.8]
[1736202382246,3.2078,3674.4,3673.6,40.8]
[1736202382549,3.2078,3674.4,3674.1,0.9761274]
[1736202382753,3.2078,3674.4,3674.3,2.72]
[1736202383051,3.2078,3675.0,3674.3,4.88514988]
[1736202383243,0.27203,3674.7,3674.4,0.8791]
[1736202383442,3.47981,3675.0,3674.9,2.72]
[1736202384057,12.05061263,3675.0,3674.9,43.52]
[1736202385156,12.05061263,3675.0,3674.9,42.22664104]
[1736202385558,12.05061263,3675.0,3674.9,1.42664104]
[1736202386256,0.27205,3674.5,3674.4,0.31051889]
[1736202386457,0.27205,3674.5,3674.4,41.11051889]
[1736202387455,8.84285263,3674.5,3674.4,41.11051889]
[1736202389463,8.84285263,3674.5,3674.4,41.55291889]
[1736202390249,8.84285263,3674.5,3674.4,44.93291889]
[1736202392557,14.14766111,3674.5,3674.4,44.93291889]
[1736202392855,13.87561111,3674.5,3674.4,44.93291889]
[1736202395460,8.57080263,3674.5,3674.4,3.8224]
[1736202396559,8.57080263,3674.5,3674.4,44.6224]
[1736202397058,13.86935608,3674.5,3674.4,44.6224]
[1736202397863,8.57080263,3674.5,3674.4,44.6224]
[1736202398367,8.57080263,3674.5,3674.4,44.89445]
[1736202398666,8.57080263,3674.5,3674.4,44.6224]
[1736202399368,8.57080263,3674.5,3674.4,44.89445]
[1736202400468,8.57080263,3674.5,3674.4,46.01645]
[1736202406076,13.86935608,3674.5,3674.4,46.01645]
[1736202408582,0.40813345,3674.5,3674.4,46.01645]
[1736202410780,0.68018345,3674.5,3674.4,44.18]
[1736202411475,5.9787369,3674.5,3674.4,44.18]
[1736202411679,12.88671859,3674.5,3674.4,44.18]
[1736202412681,7.58816514,3674.5,3674.4,44.18]
[1736202413180,8.47726514,3674.5,3674.4,44.18]
[1736202413478,13.77581859,3674.5,3674.4,44.18]
[1736202414078,8.47726514,3674.5,3674.4,44.18]
[1736202415781,8.47726514,3674.5,3674.4,2.43]
[1736202416177,11.68506514,3674.5,3674.4,2.43]
[1736202416679,11.68506514,3674.5,3674.4,43.23]
[1736202417181,17.001399,3674.5,3674.4,43.23]
[1736202418080,11.68506514,3674.5,3674.4,43.23]
[1736202418983,4.77708345,3674.5,3674.4,43.23]
[1736202420282,11.68506514,3674.5,3674.4,43.23]
[1736202423482,11.41301514,3674.5,3674.4,43.50205]
[1736202424686,16.74048854,3674.5,3674.4,43.50205]
[1736202424892,15.85138854,3674.5,3674.4,43.50205]
[1736202425889,10.52391514,3674.5,3674.4,0.27205]
[1736202426187,10.52391514,3674.5,3674.4,2.37205]
[1736202426787,7.31611514,3674.5,3674.4,2.37205]
[1736202426984,7.31611514,3674.5,3674.4,43.17205]
[1736202427781,7.58816514,3674.5,3674.4,43.17205]
[1736202428285,13.71469818,3674.5,3674.4,43.17205]
[1736202428481,13.98674818,3674.5,3674.4,43.17205]
[1736202429476,13.71469818,3674.5,3674.4,43.17205]